Cogmind - Beta 12 X4 @@@ ROGUE MODE // 2022.12.27 @ 11:21:39 Player: Jezoensis Result: Self-destructed Performance ------------- Evolutions (6) 3000 Regions Visited (21) 4200 Robots Destroyed (328) 1640 Value Destroyed (11106) 11106 Prototype IDs (27) 540 Alien Tech Used (0) 0 Bonus (7117) 7117 TOTAL SCORE: 27603 Bonus ------- High Alert Combat Kills 3104 Follower Combat Kills 217 Entered Garrisons 1000 Used RIF Installer 3000 Met Data Miner 300 Friendly Fire -504 Cogmind --------- Core Integrity 1031/1150 Matter 114/300 Energy 565/565 System Corruption 8% Temperature Cool (0) Movement Treading (152) Location -4/Garrison Parts ------- > --- POWER (2) -------- Antimatter Reactor Particle Reactor > --- PROPULSION (4) --- Improved Heavy Treads Advanced Heavy Treads > --- UTILITY (10) ----- Huge Storage Unit Advanced Visual Processing Unit Improved Sensor Array Improved Signal Interpreter Improved Terrain Scanner Advanced Terrain Scan Processor Seismic Detector Advanced Launcher Guidance Computer Improved Transmission Jammer Relay Coupler [Grunt] (35) > --- WEAPON (3) ------- Improved Lightning Gun Autogun Enhanced Coil Gun > --- INVENTORY (25) --- Light Antimatter Reactor Advanced Medium Treads Advanced Medium Treads Biometal Medium Treads Armored Heavy Treads Improved Coolant Injector High-capacity Storage Unit High-capacity Matter Pod (200) Improved Sensor Array Improved Weapon Cycler Transmission Jammer Improved Utility Shielding Advanced Hardlight Generator Relay Coupler [NC] (43) Long-range Tractor Beam Compact HERF Cannon Heavy Plasma Cannon Hypervelocity Railgun Hardcell Cannon Heavy Gauss Cannon Fusion Bomb Launcher Advanced Remote Datajack Peak State ------------ > --- POWER ------------ Antimatter Reactor Particle Reactor > --- PROPULSION ------- Improved Heavy Treads Advanced Heavy Treads > --- UTILITY ---------- Huge Storage Unit Advanced Visual Processing Unit Improved Signal Interpreter Advanced Terrain Scan Processor Advanced Launcher Guidance Computer Improved Transmission Jammer Improved Utility Shielding Advanced Hardlight Generator Relay Coupler [Grunt] Long-range Tractor Beam > --- WEAPON ----------- Gauss Rifle Enhanced Coil Gun Fusion Bomb Launcher > --- INVENTORY -------- Light Antimatter Reactor Advanced Medium Treads Advanced Medium Treads Biometal Medium Treads Armored Heavy Treads Improved Coolant Injector High-capacity Storage Unit High-capacity Matter Pod Improved Sensor Array Improved Sensor Array Improved Terrain Scanner Seismic Detector Improved Weapon Cycler Transmission Jammer Relay Coupler [NC] Improved Lightning Gun Compact HERF Cannon Heavy Plasma Cannon Hypervelocity Railgun Hardcell Cannon Heavy Gauss Cannon Advanced Remote Datajack [Rating: 117] Favorites ----------- Power Enhanced Nuclear Core Engine Heavy Ion Engine Power Core Enhanced Nuclear Core Reactor Particle Reactor Propulsion Light Treads Treads Light Treads Wheel Compact Wheel Utility High-capacity Storage Unit Device Improved Terrain Scanner Storage High-capacity Storage Unit Processor Improved Signal Interpreter Hackware Relay Coupler [NC] Protection Insulated Plating Weapon Gauss Rifle Energy Gun Gatling Laser Energy Cannon Heavy Plasma Cannon Ballistic Gun Gauss Rifle Ballistic Cannon Antimatter Cannon Launcher Advanced EMP Blaster Special Weapon Advanced Remote Datajack Slashing Weapon Ripper Special Melee Weapon Datajack Build | -11 -10 -10 -9 -9 -9 -8 -8 -8 -8 -7 -7 -7 -7 -6 -6 -6 -5 -5 -5 -4 -4 ------- Run | Scr Mat Min Mat Sto Gar Mat Gar Mat Gar Fac Low Low Dat Pro Fac Gar Fac Upp Upp Fac Gar Slots Evolved 12 | . . . 2 . . 2 . . . 2 . . . . 2 . 2 . . 2 . Power 1 | . . . . . . . . . . . . . . . . . . . . 1 . Propulsion 2 | . . . 1 . . . . . . 1 . . . . . . . . . . . Utility 8 | . . . 1 . . 2 . . . 1 . . . . 1 . 2 . . 1 . Weapon 1 | . . . . . . . . . . . . . . . 1 . . . . . . Parts Attached 657 | 11 26 4 20 29 38 84 34 48 45 84 14 2 2 2 20 111 8 6 2 43 24 Power 24 | 2 . 1 1 1 1 3 . 2 4 4 . . . . . 1 . . . 4 . Engine 14 | 2 . 1 1 1 1 1 . 2 3 2 . . . . . . . . . . . Core 6 | . . . . . . 2 . . 1 2 . . . . . 1 . . . . . Reactor 4 | . . . . . . . . . . . . . . . . . . . . 4 . Propulsion 89 | 4 9 3 9 5 4 10 3 3 4 10 . 2 . . . 21 . . . 2 . Treads 66 | . 3 1 4 3 4 10 3 3 4 6 . 2 . . . 21 . . . 2 . Leg . | . . . . . . . . . . . . . . . . . . . . . . Wheel 23 | 4 6 2 5 2 . . . . . 4 . . . . . . . . . . . Hover . | . . . . . . . . . . . . . . . . . . . . . . Flight . | . . . . . . . . . . . . . . . . . . . . . . Utility 308 | 3 5 . 2 13 16 40 20 28 23 42 10 . . . 9 51 6 6 2 19 13 Device 231 | 2 4 . 1 13 9 28 17 18 16 28 7 . . . 9 44 4 5 2 13 11 Storage 8 | 1 1 . 1 . . . 2 . . 2 . . . . . 1 . . . . . Processor 12 | . . . . . 2 1 1 1 1 4 1 . . . . . . . . 1 . Hackware 7 | . . . . . . 1 . 1 . 2 . . . . . 2 . . . 1 . Protection 50 | . . . . . 5 10 . 8 6 6 2 . . . . 4 2 1 . 4 2 Artifact . | . . . . . . . . . . . . . . . . . . . . . . Weapon 236 | 2 12 . 8 10 17 31 11 15 14 28 4 . 2 2 11 38 2 . . 18 11 Energy Gun 40 | 1 4 . 6 3 5 5 . . . 4 . . . . 3 6 . . . . 3 Energy Cannon 15 | . . . . 2 . . . . . 1 . . . . 3 4 1 . . 3 1 Ballistic Gun 91 | 1 5 . . 4 4 15 6 7 7 6 2 . 2 1 . 19 1 . . 7 4 Ballistic Cannon 10 | . . . . . . . . . . . 1 . . . . 4 . . . 4 1 Launcher 34 | . . . 1 1 3 5 2 3 6 4 1 . . . 1 3 . . . 2 2 Special Weapon 10 | . 3 . 1 . . . . . . 2 . . . . . 2 . . . 2 . Impact Weapon . | . . . . . . . . . . . . . . . . . . . . . . Slashing Weapon 35 | . . . . . 5 6 3 4 1 11 . . . 1 4 . . . . . . Piercing Weapon . | . . . . . . . . . . . . . . . . . . . . . . Special Melee Weapon 1 | . . . . . . . . 1 . . . . . . . . . . . . . Unidentified Prototypes 11 | . . . . 4 . 3 . . . 2 1 . . . . . 1 . . . . Corrupted Parts 6 | . . . . . . . . . 1 1 . . . . . 4 . . . . . System Corruption 24 | . . . . . . . . . 4 5 . . . . . 15 . . . . . Parts Lost 49 | . 2 . 1 3 6 3 . 1 6 7 . . . . . 17 . . . 1 2 Power 7 | . . . . . 1 . . 1 2 1 . . . . . 1 . . . 1 . Propulsion 25 | . 1 . 1 3 4 2 . . 2 4 . . . . . 8 . . . . . Utility 5 | . 1 . . . 1 1 . . . 1 . . . . . 1 . . . . . Weapon 12 | . . . . . . . . . 2 1 . . . . . 7 . . . . 2 Highest Loss Streak 6 | . 1 . 1 1 2 1 . 1 4 5 . . . . . 6 . . . 1 1 To Critical Strikes 1 | . . . . . . . . . . . . . . . . 1 . . . . . Average Slot Usage (%) 96 | . 99 100 100 99 99 99 100 99 97 97 91 98 85 100 100 92 88 88 88 88 88 Engine 4 | . 14 14 11 11 11 4 . 7 7 4 . . . . . . . . . . . Core 3 | . . . . . . 4 9 1 . 2 7 7 7 7 6 6 5 5 5 4 . Treads 20 | . 3 2 11 12 22 26 27 27 26 20 15 27 30 30 26 21 11 11 11 10 10 Wheel 4 | . 24 26 21 19 10 . . . . 6 7 . . . . . . . . . . Device 17 | . 14 14 22 22 14 26 17 16 11 18 12 15 15 15 20 18 16 16 17 20 18 Storage 8 | . 14 14 11 11 11 9 9 9 9 7 7 7 7 7 6 6 5 5 5 5 5 Processor 14 | . . . . . 4 9 18 18 23 16 23 23 23 23 20 20 17 17 17 15 21 Protection 1 | . . . . . 2 . . 1 1 1 2 . . . . . 5 5 5 5 2 Energy Gun 2 | . 9 . 6 3 10 2 . . . . . . . . . 3 . . . . 3 Ballistic Gun 11 | . 17 28 14 16 4 12 14 14 12 8 9 15 1 14 13 11 16 11 11 9 9 Slashing Weapon 2 | . . . . . 6 3 3 3 2 3 4 . . . 3 . . . . . . Naked Turns . | . . . . . . . . . . . . . . . . . . . . . . Heaviest Build 142 | 15 32 32 55 57 76 60 59 65 69 68 60 58 58 58 67 107 112 114 112 140 142 Greatest Support 150 | 26 26 26 32 60 60 65 65 62 63 83 28 88 88 88 88 150 145 145 145 145 145 Greatest Overweight (x) 6 | . 3 1 3 3 4 . . 1 1 6 2 2 . . . . . . . . . Average Overweight (x) . | . . 1 1 1 1 . . . . 1 2 . . . . . . . . . . Largest Inventory Capacity 25 | 8 15 15 20 20 20 20 20 20 20 20 20 20 20 20 20 25 25 25 25 25 25 Average Capacity 20 | 7 13 15 18 20 20 20 20 20 20 20 20 20 20 20 20 23 25 25 25 25 25 Most Carried 25 | 8 15 15 20 20 20 20 20 20 20 20 20 20 20 20 20 25 25 25 25 25 25 Average Carried 20 | 5 11 14 18 19 19 19 19 19 19 19 19 19 20 20 19 21 24 24 25 24 23 Final Capacity 25 | 8 15 15 20 20 20 20 20 20 20 20 20 20 20 20 20 25 25 25 25 25 25 Final Carried 25 | 7 15 15 19 19 20 20 20 20 20 20 20 20 20 20 20 25 25 25 25 25 23 Class Distribution -------------------- 34% | Scavenger-Mutant 27% | Scavenger-Skirmisher 18% | Mutant 14% | Scavenger-Assassin Dominant Class ---------------- Mutant | -10/Materials Mutant | -10/Mines Scavenger-Mutant | -9/Materials Scavenger-Mutant | -9/Storage Scavenger-Mutant | -9/Garrison Scavenger-Skirmisher | -8/Materials Mutant | -8/Garrison Scavenger-Skirmisher | -8/Materials Scavenger-Skirmisher | -8/Garrison Scavenger-Assassin | -7/Factory Scavenger-Assassin | -7/Lower Caves Scavenger-Skirmisher | -7/Lower Caves Scavenger-Mutant | -7/Data Miner Scavenger-Skirmisher | -6/Proximity Caves Scavenger-Assassin | -6/Factory Scavenger-Skirmisher | -6/Garrison Scavenger-Skirmisher | -5/Factory Scavenger-Mutant | -5/Upper Caves Scavenger-Mutant | -5/Upper Caves Scavenger-Mutant | -4/Factory Scavenger-Skirmisher | -4/Garrison Resources | -11 -10 -10 -9 -9 -9 -8 -8 -8 -8 -7 -7 -7 -7 -6 -6 -6 -5 -5 -5 -4 -4 ----------- Run | Scr Mat Min Mat Sto Gar Mat Gar Mat Gar Fac Low Low Dat Pro Fac Gar Fac Upp Upp Fac Gar Matter Collected 12299 | 310 412 310 236 668 588 1457 797 722 1236 1218 306 330 . . 348 1754 200 288 20 744 355 Remotely 5104 | . . . . 505 . 495 248 289 545 695 202 . . . 290 965 . 129 . 386 355 Salvage Created 13284 | 142 369 239 342 599 899 2028 634 857 1119 1652 345 . . . 360 2430 . 110 . 792 367 Parts 749 | 12 28 12 24 33 51 123 55 52 62 99 18 . . . 23 85 . 4 . 39 29 Haulers Intercepted 8 | . . . 1 . . 3 . 2 . 1 1 . . . . . . . . . . Recyclers Shooed 7 | . . . . 1 . 1 . . . 1 . . . . 1 . . . . 3 . Parts Field Recycled . | . . . . . . . . . . . . . . . . . . . . . . Retrieved Matter . | . . . . . . . . . . . . . . . . . . . . . . Parts Self-Destructed 16 | . . . . . . . . . . . 11 2 . . . . . 3 . . . Prevented 9 | . . . . . . . . . . . 6 . . . . . . 3 . . . Kills | -11 -10 -10 -9 -9 -9 -8 -8 -8 -8 -7 -7 -7 -7 -6 -6 -6 -5 -5 -5 -4 -4 ------- Run | Scr Mat Min Mat Sto Gar Mat Gar Mat Gar Fac Low Low Dat Pro Fac Gar Fac Upp Upp Fac Gar Combat Hostiles Destroyed 251 | . 9 3 10 12 26 32 20 20 33 19 5 . . . 7 33 . 2 . 7 13 Melee 3 | . . . . . 1 . . 1 . 1 . . . . . . . . . . . Guns 152 | . 9 3 6 12 20 24 12 10 10 12 . . . . 3 19 . 1 . 2 9 Cannons 8 | . . . . . . . . . . . . . . . . 6 . 1 . 1 . AOE 81 | . . . 3 . 5 8 8 8 23 6 5 . . . 4 3 . . . 4 4 Classes Destroyed 20 | 2 3 1 2 1 2 3 1 . . 1 . . . . . 4 . . . . . Worker 15 | . . 2 . 2 . 2 . 1 . 7 . . . . . . . . . 1 . Builder 15 | . . . . . . 3 . 2 . 8 . . . . 1 . . . . 1 . Tunneler 8 | 3 2 . . . . 1 . . . . . . . . 1 . . . . 1 . Hauler 8 | . . . 1 . . 3 . 2 . 1 1 . . . . . . . . . . Recycler 16 | 1 . 2 . 1 . 3 . . . 3 . . . . 1 . . . . 5 . Mechanic 1 | . . . . . . . . . . 1 . . . . . . . . . . . Operator 2 | . . . . . . 1 . 1 . . . . . . . . . . . . . Watcher 9 | . 1 . . . . 3 . 2 . 2 . . . . . . . . . 1 . Swarmer 85 | . 3 3 6 3 10 9 8 8 14 . . . . . 6 3 . . . 5 7 Cutter 7 | . . . . . . . . . . . . . . . . 3 . . . . 4 Saboteur 1 | . . . . . . . . . . . . . . . . 1 . . . . . Grunt 85 | . 6 . 1 4 11 12 5 5 10 11 5 . . . 1 12 . 2 . . . Brawler 7 | . . . . . 1 1 . . 2 2 . . . . . 1 . . . . . Duelist 5 | . . . . 1 2 . . . 2 . . . . . . . . . . . . Sentry 42 | . . . 3 4 3 7 5 4 5 3 . . . . . 7 . . . 1 . Demolisher 1 | . . . . . . . . . . . . . . . . 1 . . . . . Specialist 5 | . . . . . . 2 . 3 . . . . . . . . . . . . . Hunter 7 | . . . . . 1 1 1 . . . . . . . . 4 . . . . . Programmer 8 | . . . . . . . 1 . . 3 . . . . . 1 . . . 1 2 Behemoth 1 | . . . . . . . . . . . . . . . . 1 . . . . . Best Kill Streak 18 | 4 3 4 4 4 5 10 6 7 7 18 5 . . . 4 6 . 1 . 9 8 Combat Bots Only 8 | . 3 3 4 3 5 5 6 5 7 8 5 . . . 4 6 . 1 . 6 8 Max Kills in Single Turn 6 | 1 1 1 4 2 2 2 4 2 3 3 3 . . . 3 1 . 1 . 6 4 Gunslinging 1 | . . . . 1 . . . . . . . . . . 1 . . . . . 1 Exploded 4 | . . . 3 . 2 2 4 2 3 2 3 . . . 2 1 . . . 4 4 Melee 1 | . . . . . 1 . . 1 . 1 . . . . . . . . . . . Uniques/NPCs Destroyed . | . . . . . . . . . . . . . . . . . . . . . . Combat | -11 -10 -10 -9 -9 -9 -8 -8 -8 -8 -7 -7 -7 -7 -6 -6 -6 -5 -5 -5 -4 -4 -------- Run | Scr Mat Min Mat Sto Gar Mat Gar Mat Gar Fac Low Low Dat Pro Fac Gar Fac Upp Upp Fac Gar Damage Taken 13083 | . 516 156 403 480 944 1537 791 910 845 1407 183 . . . 141 3285 . 18 . 394 1073 Core 1518 | . 102 36 106 69 124 277 96 39 112 74 17 . . . 29 318 . . . 17 102 Absorbed by Shields 135 | . . . . . . . . . . . . . . . . 47 . . . . 88 Reduced by Siege Mode 124 | . . . . . . . . . . . . . . . . 29 . . . 20 75 Redirected to Shielding 46 | . . . . . . . . . . . . . . . . . . . . 17 29 Core Remaining (%) 59 | 100 . 44 . . 25 . . . 4 . . . . 87 . 59 . . 100 . . Volleys Fired 757 | 12 46 17 32 44 58 91 46 42 59 50 25 . . . 17 136 1 8 5 44 24 Largest 3 | 2 2 2 2 2 2 2 2 2 2 2 2 . . . 3 3 1 3 1 3 3 Hottest 175 | 70 100 46 100 90 103 80 64 61 72 108 56 . . . 141 175 90 146 90 146 155 Shots Fired 1400 | 24 87 34 56 81 85 167 88 73 95 91 35 . . . 30 282 1 12 5 90 64 Gun 1156 | 24 82 34 48 76 67 155 86 62 67 79 23 . . . 19 218 . 4 . 57 55 Cannon 115 | . . . . 1 . . . . . . 5 . . . 6 54 1 8 5 27 8 Launcher 107 | . . . 1 4 18 12 2 11 28 9 7 . . . 5 7 . . . 2 1 Special 22 | . 5 . 7 . . . . . . 3 . . . . . 3 . . . 4 . Kinetic 934 | 12 56 34 29 65 29 114 86 62 67 68 28 . . . 16 153 . 4 . 69 42 Thermal 230 | 12 31 . 21 12 36 1 . . . 7 . . . . 9 66 1 8 5 15 6 Explosive 19 | . . . . . . 2 1 7 6 . . . . . . . . . . 2 1 Electromagnetic 207 | . . . 6 4 20 50 1 4 22 13 7 . . . 5 60 . . . . 15 Robot Hit Streak 37 | 8 6 8 10 23 20 22 22 22 16 14 8 . . . 6 37 . 8 . 17 10 Robot Miss Streak 8 | 3 4 5 4 2 6 5 1 2 3 4 4 . . . 4 8 . . . 4 5 Penetration Max 1 | . . . . . . 1 1 1 1 1 . . . . 1 1 . . . 1 1 Secondary Targets 17 | . 1 2 . 1 1 3 1 . . 2 . . . . 1 2 . . . . 3 Max Gunslinging Chain 1 | . 1 1 . 1 1 1 1 . . 1 . . . . 1 1 . . . . 1 Shots Hit Robots 948 | 17 45 20 33 57 67 120 72 60 50 83 19 . . . 19 204 . 3 . 53 26 Core Hits 521 | 5 20 7 14 21 46 72 31 35 43 61 10 . . . 16 96 . 3 . 26 15 Critical Kills 5 | . . . . . . . . . . 2 . . . . . 2 . . . 1 . Critical Parts Destroyed 14 | . . . . 1 1 2 1 1 . 2 . . . . . 1 . . . 3 2 Critical Strikes 31 | . 1 . 1 3 1 2 1 1 . 6 1 . . . . 6 . . . 6 2 Burn 4 | . 1 . 1 2 . . . . . . . . . . . . . . . . . Meltdown 2 | . . . . . . . . . . . . . . . . 2 . . . . . Destroy 17 | . . . . 1 1 2 1 1 . 4 . . . . . 1 . . . 4 2 Blast 4 | . . . . . . . . . . . 1 . . . . 1 . . . 2 . Corrupt 3 | . . . . . . . . . . 1 . . . . . 2 . . . . . Sever 1 | . . . . . . . . . . 1 . . . . . . . . . . . Melee Attacks 109 | . . . . . 20 18 9 13 5 33 . . . 3 8 . . . . . . Impact . | . . . . . . . . . . . . . . . . . . . . . . Slashing 106 | . . . . . 20 18 9 10 5 33 . . . 3 8 . . . . . . Piercing . | . . . . . . . . . . . . . . . . . . . . . . Sneak Attacks 19 | . . . . . . 2 . 4 . 12 . . . . 1 . . . . . . Combat Hostiles . | . . . . . . . . . . . . . . . . . . . . . . Follow-up Attacks . | . . . . . . . . . . . . . . . . . . . . . . Damage Inflicted 27979 | 244 647 328 602 1036 1472 3217 1731 2302 2378 3981 721 . . . 693 5169 . 93 . 2311 1054 Guns 15698 | 244 647 328 504 927 971 2145 1350 845 726 1572 317 . . . 310 3417 . 25 . 760 610 Cannons 1781 | . . . . . . . . . . . 53 . . . 61 1132 . 68 . 467 . Explosions 8801 | . . . 98 109 286 793 381 1301 1652 1450 351 . . . 232 620 . . . 1084 444 Melee 1699 | . . . . . 215 279 . 156 . 959 . . . . 90 . . . . . . Ramming . | . . . . . . . . . . . . . . . . . . . . . . Kinetic 12210 | 119 447 328 273 731 307 1430 1350 845 726 1287 370 . . . 221 2215 . 25 . 1091 445 Thermal 4468 | 125 200 . 248 196 653 146 71 87 51 636 . . . . 150 1392 . 68 . 445 . Explosive 3254 | . . . . . . 272 230 883 650 . . . . . . . . . . 775 444 Electromagnetic 6348 | . . . 81 109 297 1090 80 331 951 1099 351 . . . 232 1562 . . . . 165 Impact . | . . . . . . . . . . . . . . . . . . . . . . Slashing 1699 | . . . . . 215 279 . 156 . 959 . . . . 90 . . . . . . Piercing . | . . . . . . . . . . . . . . . . . . . . . . Highest Corruption 17 | . . . . 3 9 . 1 1 5 15 15 15 15 15 . 17 . . . 3 8 Average Corruption 6 | . . . . 2 6 . 1 1 2 10 15 15 15 15 . 6 . . . 2 6 Corruption Purged . | . . . . . . . . . . . . . . . . . . . . . . Corruption Blocked . | . . . . . . . . . . . . . . . . . . . . . . Effects 192 | . . . . 1 36 . 7 6 16 36 18 16 6 11 . 24 . . . 1 14 Message Errors 56 | . . . . 1 9 . 3 2 6 7 5 7 1 2 . 7 . . . . 6 Matter Fused 38 | . . . . . 6 . 1 1 3 5 4 5 3 3 . 4 . . . 1 2 Heat Flow Errors 23 | . . . . . 7 . . . 2 6 2 2 . 1 . . . . . . 3 Energy Discharges 22 | . . . . . 5 . 1 . . 6 4 . 1 2 . 3 . . . . . Data Loss (minor) 21 | . . . . . 4 . . 1 3 4 . 2 1 2 . 3 . . . . 1 Data Loss (major) 12 | . . . . . 1 . 2 2 . 2 1 . . 1 . 3 . . . . . Misfires 8 | . . . . . 1 . . . 2 3 . . . . . . . . . . 2 Alerts 4 | . . . . . 3 . . . . . . . . . . 1 . . . . . Misdirections 1 | . . . . . . . . . . 1 . . . . . . . . . . . Weapon Failures 7 | . . . . . . . . . . 2 2 . . . . 3 . . . . . Overload Shots . | . . . . . . . . . . . . . . . . . . . . . . Overflow Damage 772 | . . . . . 6 19 35 141 41 348 . . . . 64 . . . . 87 31 Projectiles 6 | . . . . . . . . . . . . . . . 1 . . . . 5 . Explosions 393 | . . . . . 6 . 35 88 41 107 . . . . 3 . . . . 82 31 Melee 373 | . . . . . . 19 . 53 . 241 . . . . 60 . . . . . . Knockbacks 1 | . . . . . . . . . . . . . . . . 1 . . . . . Impact . | . . . . . . . . . . . . . . . . . . . . . . Kinetic 1 | . . . . . . . . . . . . . . . . 1 . . . . . Secondary . | . . . . . . . . . . . . . . . . . . . . . . Self-Inflicted Damage 906 | . . . . . 51 149 . 239 295 133 . . . . . 22 . . . 17 . Shots 32 | . . . . . 5 3 . 5 12 5 . . . . . 1 . . . 1 . Rammed . | . . . . . . . . . . . . . . . . . . . . . . Targets Rammed . | . . . . . . . . . . . . . . . . . . . . . . Kicked . | . . . . . . . . . . . . . . . . . . . . . . Crushed . | . . . . . . . . . . . . . . . . . . . . . . Highest Temperature 354 | 9 75 12 127 46 262 220 23 106 234 252 166 224 . 84 133 344 38 114 76 292 354 Average Temperature 58 | 6 24 6 36 5 47 38 9 36 47 58 52 111 . 71 45 92 23 51 39 65 136 Received Heat Transfer 3036 | . 324 . 120 144 279 450 315 243 225 303 117 . . . . 480 . 27 . 9 . Effects 8 | . . . . . . . . . . 1 . . . . . 4 . . . 3 . Energy Bleed 2 | . . . . . . . . . . 1 . . . . . 1 . . . . . Interference 6 | . . . . . . . . . . . . . . . . 3 . . . 3 . Siege Activations 5 | . . . . . . . . . . . . . . . . 1 . . . 1 3 Total Turns 80 | . . . . . . . . . . . . . . . . 14 . . . 25 41 Longest Duration 25 | . . . . . . . . . . . . . . . . 14 . . . 25 21 Robots Corrupted 9 | . . . . . . . . 1 . . . . . . . 8 . . . . . Combat Hostiles 4 | . . . . . . . . 1 . . . . . . . 3 . . . . . Parts Fried 35 | . . . 1 . 3 3 . 1 4 1 2 . . . 2 17 . . . . 1 Impact Corruptions . | . . . . . . . . . . . . . . . . . . . . . . Robots Melted 3 | . . . 1 . . . . . . . . . . . . 2 . . . . . Combat Hostiles 3 | . . . 1 . . . . . . . . . . . . 2 . . . . . Parts Melted 27 | 1 2 . 4 3 5 . . 1 . 2 . . . . . 9 . . . . . Heat Transferred 7805 | 370 666 . 531 555 1193 200 100 100 100 900 . . . . 274 2266 . 100 . 450 . Parts Sabotaged 6 | . . . . . . . . . . . . . . . . 6 . . . . . Parts Stolen . | . . . . . . . . . . . . . . . . . . . . . . Parts Stripped . | . . . . . . . . . . . . . . . . . . . . . . Power Chain Reactions 19 | . . . 1 . . 5 1 1 5 3 2 . . . . 1 . . . . . Missiles Intercepted . | . . . . . . . . . . . . . . . . . . . . . . Alert | -11 -10 -10 -9 -9 -9 -8 -8 -8 -8 -7 -7 -7 -7 -6 -6 -6 -5 -5 -5 -4 -4 ------- Run | Scr Mat Min Mat Sto Gar Mat Gar Mat Gar Fac Low Low Dat Pro Fac Gar Fac Upp Upp Fac Gar Peak Influence 1460 | 20 255 168 252 465 1139 1321 1298 1059 1460 1170 . . . . 167 1058 557 . . 409 855 Initial 766 | . 13 78 65 81 111 555 745 632 412 766 . . . . . 15 555 . . 72 286 Average 669 | 10 137 149 121 277 728 926 1076 734 1022 934 . . . . 71 667 555 . . 98 662 Maximum Alert Level 4 | . 1 . 1 2 4 4 4 3 4 4 . . . . . 3 2 . . 2 3 Low Security (%) 22 | 100 85 100 86 26 2 . . . . . . . . . 100 9 . . . 94 . Level 1 5 | . 14 . 13 65 13 . . . . . . . . . . 5 . . . 1 3 Level 2 17 | . . . . 7 43 13 . 29 10 . . . . . . 39 100 . . 3 44 Level 3 38 | . . . . . 12 55 40 70 57 88 . . . . . 46 . . . . 52 Level 4 16 | . . . . . 28 30 59 . 31 10 . . . . . . . . . . . Level 5 . | . . . . . . . . . . . . . . . . . . . . . . High Security . | . . . . . . . . . . . . . . . . . . . . . . Max Security . | . . . . . . . . . . . . . . . . . . . . . . Squads Dispatched 33 | . 4 . . 1 . 6 . 5 . 13 . . . . 4 . . . . . . Investigation 7 | . 3 . . . . 2 . . . 2 . . . . . . . . . . . Extermination 4 | . . . . . . . . . . 3 . . . . 1 . . . . . . Reinforcement 13 | . 1 . . . . 4 . 4 . 4 . . . . . . . . . . . Assault 2 | . . . . . . . . 1 . 1 . . . . . . . . . . . Garrison 7 | . . . . 1 . . . . . 3 . . . . 3 . . . . . . Intercept . | . . . . . . . . . . . . . . . . . . . . . . Searches Triggered . | . . . . . . . . . . . . . . . . . . . . . . Construction Impeded 2 | . . . . . . . . 1 . 1 . . . . . . . . . . . Haulers Reinforced 1 | . . . . . . . . . . 1 . . . . . . . . . . . Active Scanning Responses . | . . . . . . . . . . . . . . . . . . . . . . Cargo Convoy Interrupts . | . . . . . . . . . . . . . . . . . . . . . . Stealth | -11 -10 -10 -9 -9 -9 -8 -8 -8 -8 -7 -7 -7 -7 -6 -6 -6 -5 -5 -5 -4 -4 --------- Run | Scr Mat Min Mat Sto Gar Mat Gar Mat Gar Fac Low Low Dat Pro Fac Gar Fac Upp Upp Fac Gar Distress Signals 13 | . 1 . . . . 3 . 4 . 1 . . . . 2 . . . . 2 . Communications Jammed 99 | . . . . . . . . . . . . . . . . . . . . 99 . Distress Signals 97 | . . . . . . . . . . . . . . . . . . . . 97 . Times Spotted 341 | . 16 3 14 12 36 49 17 36 31 36 5 . . . 10 41 . 1 . 17 17 Peak Tracking Total 9 | . 4 3 4 3 5 9 9 6 4 8 5 . . . 4 7 . 1 . 6 5 Tactical Retreats 19 | . . . . . 2 4 2 1 . 3 . . . . . 2 . . . 1 4 Traps | -11 -10 -10 -9 -9 -9 -8 -8 -8 -8 -7 -7 -7 -7 -6 -6 -6 -5 -5 -5 -4 -4 ------- Run | Scr Mat Min Mat Sto Gar Mat Gar Mat Gar Fac Low Low Dat Pro Fac Gar Fac Upp Upp Fac Gar Traps Triggered 32 | . 4 . . 2 4 4 2 . 7 . . . . . . 5 . . . 4 . Indirectly 13 | . . . . . . 2 . . 6 . . . . . . 5 . . . . . Trap Hack Attempts . | . . . . . . . . . . . . . . . . . . . . . . Triggered . | . . . . . . . . . . . . . . . . . . . . . . Disarmed . | . . . . . . . . . . . . . . . . . . . . . . Reprogrammed . | . . . . . . . . . . . . . . . . . . . . . . Reused . | . . . . . . . . . . . . . . . . . . . . . . Traps Extracted . | . . . . . . . . . . . . . . . . . . . . . . Installed . | . . . . . . . . . . . . . . . . . . . . . . Triggered 7 | . . . . . . . . . . . . 3 . . . 2 . 2 . . . Machines | -11 -10 -10 -9 -9 -9 -8 -8 -8 -8 -7 -7 -7 -7 -6 -6 -6 -5 -5 -5 -4 -4 ---------- Run | Scr Mat Min Mat Sto Gar Mat Gar Mat Gar Fac Low Low Dat Pro Fac Gar Fac Upp Upp Fac Gar Machines Disabled 27 | . . . . 1 2 7 . 2 5 1 . . . . . 3 . . . 2 4 Max in Single Turn 2 | . . . . 1 1 2 . 2 2 1 . . . . . 2 . . . 2 2 Garrison Access 1 | . . . . . . . . . . . . . . . . . . . . 1 . Garrison Relay 4 | . . . . . . . . . 2 . . . . . . 2 . . . . . Phase Generator 4 | . . . . . 1 . . . 1 . . . . . . 1 . . . . 1 Machines Sabotaged . | . . . . . . . . . . . . . . . . . . . . . . Overloaded Fab Kills . | . . . . . . . . . . . . . . . . . . . . . . Hacking | -11 -10 -10 -9 -9 -9 -8 -8 -8 -8 -7 -7 -7 -7 -6 -6 -6 -5 -5 -5 -4 -4 --------- Run | Scr Mat Min Mat Sto Gar Mat Gar Mat Gar Fac Low Low Dat Pro Fac Gar Fac Upp Upp Fac Gar Machines Accessed 75 | . 9 . 3 11 3 9 3 7 3 9 . . 3 . 7 2 . . . 5 1 Terminals 55 | . 7 . 3 10 3 8 3 5 3 5 . . . . 3 2 . . . 2 1 Fabricators 5 | . . . . . . . . . . 3 . . . . 2 . . . . . . Repair Stations . | . . . . . . . . . . . . . . . . . . . . . . Recycling Units 6 | . 2 . . . . . . 1 . 1 . . . . 1 . . . . 1 . Scanalyzers . | . . . . . . . . . . . . . . . . . . . . . . Garrison Access 6 | . . . . 1 . 1 . 1 . . . . . . 1 . . . . 2 . Total Hacks 194 | . 23 . 10 29 7 19 6 19 3 24 . . 25 . 16 5 . . . 7 1 Successful 108 | . 13 . 6 17 1 8 3 9 2 9 . . 25 . 10 1 . . . 4 . Failed 84 | . 9 . 3 12 6 11 3 10 1 15 . . . . 6 4 . . . 3 1 Catastrophic 14 | . 1 . . 1 . 3 . . 1 4 . . . . 3 1 . . . . . Database Lockouts 2 | . 1 . 1 . . . . . . . . . . . . . . . . . . Manual 108 | . 19 . 9 15 . 17 . 16 . 15 . . . . 13 . . . . 4 . Terminals 140 | . 21 . 10 28 7 18 6 16 3 15 . . . . 7 5 . . . 3 1 Fabricators 14 | . . . . . . . . . . 7 . . . . 7 . . . . . . Repair Stations . | . . . . . . . . . . . . . . . . . . . . . . Recycling Units 8 | . 2 . . . . . . 2 . 2 . . . . 1 . . . . 1 . Scanalyzers . | . . . . . . . . . . . . . . . . . . . . . . Garrison Access 7 | . . . . 1 . 1 . 1 . . . . . . 1 . . . . 3 . Terminal Hacks 67 | . 8 . 5 11 1 2 3 3 2 2 . . 25 . 4 1 . . . . . Record 6 | . . . . . . . . . . . . . 6 . . . . . . . . Part Schematic 13 | . . . 1 1 . . . . . . . . 11 . . . . . . . . Robot Schematic 5 | . . . . . . . . . . . . . 5 . . . . . . . . Robot Analysis 10 | . 5 . 3 . . . . . . . . . . . 2 . . . . . . Prototype ID Bank 5 | . 1 . 1 . . . . . . . . . 3 . . . . . . . . Open Door 4 | . . . . 3 1 . . . . . . . . . . . . . . . . Emergency Access Points 2 | . . . . . . . 1 . 1 . . . . . . . . . . . . Terminal Index 5 | . 1 . . 1 . 1 . 1 . 1 . . . . . . . . . . . Unreport Threat 5 | . . . . 2 . 1 . 1 . . . . . . 1 . . . . . . Locate Traps 5 | . 1 . . 2 . . . . . 1 . . . . 1 . . . . . . Zone Layout 3 | . . . . 2 . . . 1 . . . . . . . . . . . . . Garrison Registry 1 | . . . . . . . . . . . . . . . . 1 . . . . . Patrol Navigation 2 | . . . . . . . 1 . 1 . . . . . . . . . . . . Security Stations 1 | . . . . . . . 1 . . . . . . . . . . . . . . Fabricator Hacks 2 | . . . . . . . . . . 1 . . . . 1 . . . . . . Network Status 1 | . . . . . . . . . . 1 . . . . . . . . . . . Build 1 | . . . . . . . . . . . . . . . 1 . . . . . . Repair Station Hacks . | . . . . . . . . . . . . . . . . . . . . . . Recycling Unit Hacks . | . . . . . . . . . . . . . . . . . . . . . . Scanalyzer . | . . . . . . . . . . . . . . . . . . . . . . Garrison Access Hacks 7 | . . . . 1 . 1 . 1 . . . . . . 1 . . . . 3 . Unlock Access 5 | . . . . 1 . 1 . 1 . . . . . . 1 . . . . 1 . Seal Access 1 | . . . . . . . . . . . . . . . . . . . . 1 . Coupler Status 1 | . . . . . . . . . . . . . . . . . . . . 1 . Unauthorized Hacks 32 | . 5 . 1 5 . 5 . 5 . 6 . . . . 4 . . . . 1 . Terminals 21 | . 3 . 1 5 . 5 . 4 . 2 . . . . 1 . . . . . . Track 3 | . . . . 2 . 1 . . . . . . . . . . . . . . . Assimilate 1 | . . . . . . . . 1 . . . . . . . . . . . . . Botnet 13 | . 2 . 1 2 . 3 . 2 . 2 . . . . 1 . . . . . . Disrupt 1 | . . . . 1 . . . . . . . . . . . . . . . . . Operators 3 | . 1 . . . . 1 . 1 . . . . . . . . . . . . . Fabricators 5 | . . . . . . . . . . 3 . . . . 2 . . . . . . Fabnet 4 | . . . . . . . . . . 2 . . . . 2 . . . . . . Haulers 1 | . . . . . . . . . . 1 . . . . . . . . . . . Repair Stations . | . . . . . . . . . . . . . . . . . . . . . . Recycling Units 6 | . 2 . . . . . . 1 . 1 . . . . 1 . . . . 1 . Recyclers 4 | . . . . . . . . 1 . 1 . . . . 1 . . . . 1 . Tunnel 2 | . 2 . . . . . . . . . . . . . . . . . . . . Scanalyzers . | . . . . . . . . . . . . . . . . . . . . . . Garrison Access . | . . . . . . . . . . . . . . . . . . . . . . Data Cores Recovered . | . . . . . . . . . . . . . . . . . . . . . . Used . | . . . . . . . . . . . . . . . . . . . . . . Hacking Detections 59 | . 7 . 3 8 3 8 2 6 2 9 . . . . 6 2 . . . 2 1 Full Trace Events 6 | . . . . . 2 1 . . . 2 . . . . . 1 . . . . . Feedback Events . | . . . . . . . . . . . . . . . . . . . . . . Feedback Blocked . | . . . . . . . . . . . . . . . . . . . . . . Robot Schematics Acquired 5 | . . . . . . . . . . . . . 5 . . . . . . . . Robots Built . | . . . . . . . . . . . . . . . . . . . . . . Authchips . | . . . . . . . . . . . . . . . . . . . . . . Time . | . . . . . . . . . . . . . . . . . . . . . . Total Robot Build Rating . | . . . . . . . . . . . . . . . . . . . . . . Part Schematics Acquired 13 | . . . 1 1 . . . . . . . . 11 . . . . . . . . Parts Built 2 | . . . . . . . . . . . . . . . 2 . . . . . . Authchips . | . . . . . . . . . . . . . . . . . . . . . . Time 106 | . . . . . . . . . . . . . . . 106 . . . . . . Total Part Build Rating 12 | . . . . . . . . . . . . . . . 12 . . . . . . Parts Repaired . | . . . . . . . . . . . . . . . . . . . . . . Time . | . . . . . . . . . . . . . . . . . . . . . . Parts Recycled . | . . . . . . . . . . . . . . . . . . . . . . Recycled Matter . | . . . . . . . . . . . . . . . . . . . . . . Retrieved Matter . | . . . . . . . . . . . . . . . . . . . . . . Retrieved Components . | . . . . . . . . . . . . . . . . . . . . . . Parts Scanalyzed . | . . . . . . . . . . . . . . . . . . . . . . Part Schematics Acquired . | . . . . . . . . . . . . . . . . . . . . . . Parts Damaged . | . . . . . . . . . . . . . . . . . . . . . . Bothacking | -11 -10 -10 -9 -9 -9 -8 -8 -8 -8 -7 -7 -7 -7 -6 -6 -6 -5 -5 -5 -4 -4 ------------ Run | Scr Mat Min Mat Sto Gar Mat Gar Mat Gar Fac Low Low Dat Pro Fac Gar Fac Upp Upp Fac Gar Used RIF Installer 6 | . . . . . 1 . 1 . 1 . . . . . . 2 . . . . 1 Coupler Efficiency 2 | . . . . . . . . . 1 . . . . . . 1 . . . . . Zone Cloak 1 | . . . . . . . 1 . . . . . . . . . . . . . . Watcher Feeds 1 | . . . . . . . . . . . . . . . . . . . . . 1 Autooverride 1 | . . . . . . . . . . . . . . . . 1 . . . . . Robots Hacked 10 | . . . . . . . . 1 . 2 . . . . 1 3 . . . 3 . Non-combat 7 | . . . . . . . . 1 . 2 . . . . . 1 . . . 3 . Combat 3 | . . . . . . . . . . . . . . . 1 2 . . . . . Robot Hacks Applied 9 | . . . . . . . . 2 . 3 . . . . . 1 . . . 3 . purge_threat 4 | . . . . . . . . 2 . 2 . . . . . . . . . . . map_route 2 | . . . . . . . . . . 1 . . . . . . . . . 1 . redirect_shields 1 | . . . . . . . . . . . . . . . . 1 . . . . . link_fov 1 | . . . . . . . . . . . . . . . . . . . . 1 . formatsys_high 1 | . . . . . . . . . . . . . . . . . . . . 1 . Relay Couplers Released 21 | . . . . . . . 3 . 10 . . . . . . 6 . . . 2 . Machine Destruction 18 | . . . . . . . . . 10 . . . . . . 6 . . . 2 . Programmers 3 | . . . . . . . 3 . . . . . . . . . . . . . . Attached 5 | . . . . . . . . 1 . 1 . . . . . 2 . . . 1 . Fabnet Peak Effective % 8 | . . . . . . . . . . . . . . 6 6 6 8 8 8 2 2 Autooverrided 3 | . . . . . . . . . . . . . . . 1 2 . . . . . Robots Rewired 2 | . . . . . 2 . . . . . . . . . . . . . . . . Allies Hacked . | . . . . . . . . . . . . . . . . . . . . . . Hacks Repelled . | . . . . . . . . . . . . . . . . . . . . . . Allies | -11 -10 -10 -9 -9 -9 -8 -8 -8 -8 -7 -7 -7 -7 -6 -6 -6 -5 -5 -5 -4 -4 -------- Run | Scr Mat Min Mat Sto Gar Mat Gar Mat Gar Fac Low Low Dat Pro Fac Gar Fac Upp Upp Fac Gar Total Allies 17 | . . . . 10 2 . . 1 . . . . . . 1 2 . . . 1 . Largest Group 10 | . . . . 10 10 . . 1 . . . . . . 1 1 . . . 1 . Highest-Rated Group 88 | . . . . 88 88 . . 10 . . . . . . 29 47 . . . 26 . Highest-Rated Ally 47 | . . . . 16 25 . . 10 . . . . . . 29 47 . . . 26 . Total Orders . | . . . . . . . . . . . . . . . . . . . . . . Ally Attacks 77 | . . . . . 73 . . . . . . . . . . 4 . . . . . Total Damage 1044 | . . . . . 888 . . . . . . . . . . 156 . . . . . Kills 8 | . . . . . 8 . . . . . . . . . . . . . . . . Allies Corrupted . | . . . . . . . . . . . . . . . . . . . . . . Allies Melted . | . . . . . . . . . . . . . . . . . . . . . . Intel | -11 -10 -10 -9 -9 -9 -8 -8 -8 -8 -7 -7 -7 -7 -6 -6 -6 -5 -5 -5 -4 -4 ------- Run | Scr Mat Min Mat Sto Gar Mat Gar Mat Gar Fac Low Low Dat Pro Fac Gar Fac Upp Upp Fac Gar Robot Analysis Total 10 | . 5 . 3 . . . . . . . . . . . 2 . . . . . . Derelict Logs Recovered 9 | . . 2 . . . . . . . . 2 1 . 1 . . . 1 2 . . Drone Launches . | . . . . . . . . . . . . . . . . . . . . . . Drone Recoveries . | . . . . . . . . . . . . . . . . . . . . . . Exploration | -11 -10 -10 -9 -9 -9 -8 -8 -8 -8 -7 -7 -7 -7 -6 -6 -6 -5 -5 -5 -4 -4 ------------- Run | Scr Mat Min Mat Sto Gar Mat Gar Mat Gar Fac Low Low Dat Pro Fac Gar Fac Upp Upp Fac Gar Turns Passed 15745 | 113 711 210 522 391 1688 1850 919 843 1405 1371 366 374 142 229 669 1471 138 372 773 758 430 Spaces Moved 8387 | 68 539 148 330 178 967 874 474 384 718 742 215 239 87 137 340 567 78 223 500 375 204 Core 15 | 15 . . . . . . . . . . . . . . . . . . . . . Treads 5790 | . . . . 1 385 874 474 384 718 244 . 199 87 137 340 567 78 223 500 375 204 Legs . | . . . . . . . . . . . . . . . . . . . . . . Wheels 2582 | 53 539 148 330 177 582 . . . . 498 215 40 . . . . . . . . . Hover . | . . . . . . . . . . . . . . . . . . . . . . Flight . | . . . . . . . . . . . . . . . . . . . . . . Fastest Speed 50 | 50 80 105 105 115 115 155 155 155 160 110 130 130 160 160 160 152 152 152 152 152 152 Average Speed 145 | 75 95 105 115 118 141 161 155 162 160 135 130 154 160 160 160 159 152 152 152 152 152 Slowest Speed 243 | 90 125 105 145 160 160 163 155 243 240 240 130 160 160 160 160 165 152 152 152 157 152 Overloaded Moves . | . . . . . . . . . . . . . . . . . . . . . . Propulsion Burnouts . | . . . . . . . . . . . . . . . . . . . . . . Robots Hopped . | . . . . . . . . . . . . . . . . . . . . . . Cave-ins Triggered . | . . . . . . . . . . . . . . . . . . . . . . Exploration Rate (%) 49 | 5 87 53 30 32 81 84 70 56 82 28 46 51 71 45 12 75 3 40 69 15 49 Regions Visited 21 Branch Regions 8 Pre-discovered Areas 4 | . 2 . . . . . . . . . 1 . 1 . . . . . . . . Known Exits Taken 14 | . . . 1 1 . 1 . 1 . 1 1 1 1 1 1 . 1 1 1 1 . Unknown Exits Taken 3 | 1 1 1 . . . . . . . . . . . . . . . . . . . Scrap Searched 10 | . . 1 . . . . . . . . 1 2 . . . . . 4 2 . . Spaces Dug 78 | . 4 . 3 . 2 12 3 7 . 16 . . . 3 9 2 1 2 5 9 . Terrain Destroyed 623 | . 5 . 9 . 55 89 8 82 80 26 1 . . 3 11 85 1 6 5 68 89 Melee 50 | . . . . . 2 12 3 7 . 16 . . . 3 7 . . . . . . Projectile 57 | . 5 . 6 . . . . . 1 . . . . . 4 9 1 6 5 14 6 AOE 516 | . . . 3 . 53 77 5 75 79 10 1 . . . . 76 . . . 54 83 Terrain Rammed . | . . . . . . . . . . . . . . . . . . . . . . Walls Destroyed . | . . . . . . . . . . . . . . . . . . . . . . Machines Disabled . | . . . . . . . . . . . . . . . . . . . . . . Actions | -11 -10 -10 -9 -9 -9 -8 -8 -8 -8 -7 -7 -7 -7 -6 -6 -6 -5 -5 -5 -4 -4 --------- Run | Scr Mat Min Mat Sto Gar Mat Gar Mat Gar Fac Low Low Dat Pro Fac Gar Fac Upp Upp Fac Gar Total 10559 | 103 638 175 410 283 1158 1139 585 523 868 968 262 244 90 141 424 944 97 244 510 482 271 Wait 213 | 1 5 . 7 10 16 10 7 11 15 10 4 . . . 28 69 1 4 . 2 13 Move 8362 | 67 538 147 329 177 965 873 472 383 716 741 214 238 86 136 339 565 77 222 499 374 204 Hop . | . . . . . . . . . . . . . . . . . . . . . . Pick Up 185 | 9 14 3 11 8 11 24 7 9 14 18 1 2 . . 5 30 4 2 1 11 1 Fast Attach 93 | 5 5 . 2 6 4 9 1 6 2 15 3 1 2 . 1 17 2 . 2 8 2 Attach 112 | 3 3 . 5 5 9 10 1 5 9 13 . 1 . . 2 32 3 . . 5 6 Detach 43 | . . . . 4 3 5 . 4 2 6 . . . . 1 13 2 . . . 3 Swap 452 | 3 18 4 13 18 25 65 32 37 34 56 11 . . 2 17 62 3 6 . 30 16 Drop 190 | 3 9 4 11 11 7 34 10 13 9 26 4 2 2 . 6 20 4 2 3 8 2 Fire 757 | 12 46 17 32 44 58 91 46 42 59 50 25 . . . 17 136 1 8 5 44 24 Melee 109 | . . . . . 20 18 9 13 5 33 . . . 3 8 . . . . . . Ram . | . . . . . . . . . . . . . . . . . . . . . . Kick . | . . . . . . . . . . . . . . . . . . . . . . Crush . | . . . . . . . . . . . . . . . . . . . . . . Escape Stasis 11 | . . . . . 8 . . . 3 . . . . . . . . . . . . Rewire 32 | . . . . . 32 . . . . . . . . . . . . . . . . Trap . | . . . . . . . . . . . . . . . . . . . . . . Miscellaneous . | . . . . . . . . . . . . . . . . . . . . . . Route ------- -11/Scrapyard -10/Materials (discovered 4 exits: *Mat x3 / [*Min]) -10/Mines (discovered 2 exits: *Mat / [*Exi]) -9/Materials (discovered 3 exits: *Mat / *Min / *Sto) -9/Storage -9/Garrison (discovered 3 exits: *Mat x3) -8/Materials (discovered 3 exits: *Fac x2 / Gar) -8/Garrison (discovered 3 exits: *Mat x3) -8/Materials (discovered 2 exits: *Fac / Gar) -8/Garrison (discovered 4 exits: *Fac x3 / [Mat]) -7/Factory (discovered 3 exits: *Fac x2 / *Low) -7/Lower Caves -7/Lower Caves (discovered 2 exits: *Fac / *Dat) -7/Data Miner -6/Proximity Caves -6/Factory -6/Garrison (discovered 3 exits: *Fac x3) -5/Factory -5/Upper Caves -5/Upper Caves (discovered 2 exits: *Fac / *War) -4/Factory (discovered 2 exits: *Res / Gar) -4/Garrison (discovered 2 exits: *Res x2) History --------- Turn | Location | Event 14 | -11/Scrapyard | Discovered new exit (range 15) 114 | -11/Scrapyard | Entered Materials 144 | -10/Materials | Discovered new exit (range 11) 302 | -10/Materials | Build established: Mutant 334 | -10/Materials | Central database locked down 512 | -10/Materials | Discovered new exit (range 5) 593 | -10/Materials | Discovered new exit (range 9) 800 | -10/Materials | Discovered new exit (range 5) 825 | -10/Materials | Entered Mines 834 | -10/Mines | Core integrity fell below 50% 864 | -10/Mines | Deemed a non-threat by the Exiles lab entrance 864 | -10/Mines | Discovered new exit (range 5) 1023 | -10/Mines | Discovered new exit (range 12) 1035 | -10/Mines | Entered Materials 1035 | -9/Materials | Evolved 2 slots: Propulsion x1, Utility x1 1036 | -9/Materials | Identified exit to Mines 1036 | -9/Materials | Identified exit to Storage 1411 | -9/Materials | Discovered new exit (range 8) 1414 | -9/Materials | Central database locked down 1517 | -9/Materials | Build established: Scavenger-Mutant 1557 | -9/Materials | Entered Storage 1890 | -9/Storage | Garrison activated, responded to threat 1939 | -9/Storage | Assisted by bots powering up and referring to "LRC-V3" 1947 | -9/Storage | Identified exit to Garrison 1948 | -9/Storage | Entered Garrison 1948 | -9/Garrison | Accompanied by 10 allies 1978 | -9/Garrison | Triggered checkpoint 2026 | -9/Garrison | Triggered checkpoint 2246 | -9/Garrison | Triggered checkpoint 2280 | -9/Garrison | Discovered new exit (range 8) 2362 | -9/Garrison | Triggered checkpoint 2516 | -9/Garrison | Triggered checkpoint 2571 | -9/Garrison | Discovered new exit (range 11) 2612 | -9/Garrison | Triggered checkpoint 2834 | -9/Garrison | Triggered checkpoint 2849 | -9/Garrison | Core integrity fell below 50% 3020 | -9/Garrison | Triggered checkpoint 3060 | -9/Garrison | Discovered new exit (range 8) 3112 | -9/Garrison | Phase Generator disabled 3173 | -9/Garrison | Installed Relay Interface Framework 3259 | -9/Garrison | Spotted B-75 Beast 3636 | -9/Garrison | Entered Materials 3636 | -8/Materials | Evolved 2 slots: Utility x2 4084 | -8/Materials | Discovered new exit (range 15) 4422 | -8/Materials | Build established: Scavenger-Skirmisher 4473 | -8/Materials | Discovered new exit (range 7) 4953 | -8/Materials | Core integrity fell below 50% 5484 | -8/Materials | Identified exit to Garrison 5486 | -8/Materials | Entered Garrison 5529 | -8/Garrison | Learned Materials security intel 5618 | -8/Garrison | Triggered checkpoint 5705 | -8/Garrison | Discovered new exit (range 10) 5777 | -8/Garrison | Expanded RIF knowledge: Zone Cloak 5794 | -8/Garrison | Build established: Mutant 5910 | -8/Garrison | Discovered new exit (range 8) 6006 | -8/Garrison | Triggered checkpoint 6114 | -8/Garrison | Discovered new exit (range 15) 6294 | -8/Garrison | Triggered checkpoint 6405 | -8/Garrison | Entered Materials 6989 | -8/Materials | Discovered new exit (range 12) 7205 | -8/Materials | First assault squad dispatched 7243 | -8/Materials | Identified exit to Garrison 7248 | -8/Materials | Entered Garrison 7317 | -8/Garrison | Triggered checkpoint 7350 | -8/Garrison | Triggered checkpoint 7379 | -8/Garrison | Triggered checkpoint 7421 | -8/Garrison | Destroyed 7 combat bots 7452 | -8/Garrison | Triggered checkpoint 7555 | -8/Garrison | Discovered new exit (range 8) 7596 | -8/Garrison | Triggered checkpoint 7597 | -8/Garrison | Core integrity fell below 20% 7640 | -8/Garrison | Lost 4 parts (1p1n2w) 7818 | -8/Garrison | Discovered new exit (range 12) 8021 | -8/Garrison | Discovered new exit (range 13) 8051 | -8/Garrison | Phase Generator disabled 8207 | -8/Garrison | Triggered checkpoint 8335 | -8/Garrison | Build established: Scavenger-Skirmisher 8440 | -8/Garrison | Expanded RIF knowledge: Coupler Efficiency 8554 | -8/Garrison | Garrison Relay disabled 8558 | -8/Garrison | Triggered checkpoint 8610 | -8/Garrison | Discovered new exit (range 16) 8650 | -8/Garrison | Identified exit to Factory 8653 | -8/Garrison | Entered Factory 8653 | -7/Factory | Evolved 2 slots: Propulsion x1, Utility x1 8844 | -7/Factory | Discovered new exit (range 13) 8940 | -7/Factory | Identified exit to Factory 9053 | -7/Factory | First assault squad dispatched 9111 | -7/Factory | Garrison activated, responded to threat 9143 | -7/Factory | Destroyed 8 combat bots 9174 | -7/Factory | Lost 5 parts (1p2n1u1w) 9405 | -7/Factory | System corruption reached 10% 9408 | -7/Factory | Build established: Scavenger-Mutant 9594 | -7/Factory | Discovered exit to Factory (range 10) 9786 | -7/Factory | Build established: Scavenger-Assassin 9911 | -7/Factory | Discovered new exit (range 10) 10023 | -7/Factory | Identified exit to Lower Caves 10024 | -7/Factory | Entered Lower Caves 10151 | -7/Lower Caves | Encountered a Warlord checkpoint 10232 | -7/Lower Caves | Discovered new exit (range 8) 10238 | -7/Lower Caves | Identified exit to Lower Caves 10302 | -7/Lower Caves | Learned Factory security intel 10390 | -7/Lower Caves | Entered another Lower Caves area 10390 | -7/Lower Caves | Discovered exit to Factory (range 10) 10478 | -7/Lower Caves | Spotted B-75 Beast 10543 | -7/Lower Caves | Build established: Scavenger-Skirmisher 10592 | -7/Lower Caves | Learned location of 1 exit from Proximity Caves 10738 | -7/Lower Caves | Discovered new exit (range 17) 10762 | -7/Lower Caves | Identified exit to Data Miner 10764 | -7/Lower Caves | Entered Data Miner 10765 | -7/Data Miner | Discovered new exit (range 7) 10789 | -7/Data Miner | Met Data Miner 10825 | -7/Data Miner | Learned location of Section 7 (-2) 10825 | -7/Data Miner | Acquired the access code to Warlord's prototype stash 10845 | -7/Data Miner | Received God Mode back door access code from Data Miner 10904 | -7/Data Miner | Identified exit to Proximity Caves 10906 | -7/Data Miner | Entered Proximity Caves 11103 | -6/Proximity Caves | Learned 4 Factory zone layouts 11135 | -6/Proximity Caves | Entered Factory 11135 | -6/Factory | Evolved 2 slots: Utility x1, Weapon x1 11350 | -6/Factory | Fabricated Imp. Weapon Cycler (x2) 11437 | -6/Factory | Garrison activated, responded to threat 11506 | -6/Factory | Spotted B-75 Beast 11803 | -6/Factory | Identified exit to Garrison 11804 | -6/Factory | Entered Garrison 11829 | -6/Garrison | Phase Generator disabled 11969 | -6/Garrison | Discovered new exit (range 78) 11969 | -6/Garrison | Discovered new exit (range 84) 11969 | -6/Garrison | Discovered new exit (range 36) 12009 | -6/Garrison | Triggered checkpoint 12009 | -6/Garrison | Triggered checkpoint 12086 | -6/Garrison | Destroyed B-75 Beast 12222 | -6/Garrison | Triggered checkpoint 12285 | -6/Garrison | Expanded RIF knowledge: Coupler Efficiency 12516 | -6/Garrison | Triggered checkpoint 12596 | -6/Garrison | Lost 6 parts (4n2w) 12781 | -6/Garrison | Expanded RIF knowledge: Autooverride 12868 | -6/Garrison | Garrison Relay disabled 12970 | -6/Garrison | Triggered checkpoint 13026 | -6/Garrison | System corruption reached 10% 13060 | -6/Garrison | Lost 3 parts (2n1w) 13074 | -6/Garrison | Triggered checkpoint 13075 | -6/Garrison | Garrison Relay disabled 13159 | -6/Garrison | Lost 5 parts (1n1u3w) 13192 | -6/Garrison | Found Fusion Bomb Launcher 13268 | -6/Garrison | Identified exit to Factory 13275 | -6/Garrison | Entered Factory 13275 | -5/Factory | Evolved 2 slots: Utility x2 13384 | -5/Factory | Discovered new exit (range 14) 13412 | -5/Factory | Identified exit to Upper Caves 13413 | -5/Factory | Entered Upper Caves 13430 | -5/Upper Caves | Learned Factory interactive machine intel 13762 | -5/Upper Caves | Discovered new exit (range 14) 13784 | -5/Upper Caves | Identified exit to Upper Caves 13785 | -5/Upper Caves | Entered another Upper Caves area 13876 | -5/Upper Caves | Encountered a Warlord checkpoint 13954 | -5/Upper Caves | Learned Factory terminal intel 14067 | -5/Upper Caves | Discovered new exit (range 10) 14079 | -5/Upper Caves | Identified exit to Warlord 14099 | -5/Upper Caves | Build established: Scavenger-Mutant 14449 | -5/Upper Caves | Learned Factory emergency access door positions 14535 | -5/Upper Caves | Discovered new exit (range 7) 14557 | -5/Upper Caves | Identified exit to Factory 14558 | -5/Upper Caves | Entered Factory 14558 | -4/Factory | Evolved 2 slots: Power x1, Utility x1 14560 | -4/Factory | Loaded intel: 51 interactive machine locations 14561 | -4/Factory | Loaded intel: 25 terminal locations 14921 | -4/Factory | Discovered new exit (range 11) 14950 | -4/Factory | Identified exit to Research 15166 | -4/Factory | Spotted B-86 Titan 15315 | -4/Factory | Identified exit to Garrison 15316 | -4/Factory | Entered Garrison 15331 | -4/Garrison | Phase Generator disabled 15502 | -4/Garrison | Triggered checkpoint 15548 | -4/Garrison | Triggered checkpoint 15554 | -4/Garrison | Destroyed 8 combat bots 15606 | -4/Garrison | Discovered exit to Research (range 7) 15672 | -4/Garrison | Triggered checkpoint 15726 | -4/Garrison | Expanded RIF knowledge: Watcher Feeds 15743 | -4/Garrison | Discovered exit to Research (range 12) 15746 | -4/Garrison | Self-destructed Last Messages --------------- 15598_ System corrupted: FCS attempts to trigger Enh. Coil Gun. 15598_ System corrupted: Enh. Coil Gun misfires. 15598_ Slug penetrates Wall. 15606_ EXIT=FOUND: RESEARCH 15616_ System corrupted: Heat flow error (+194). 15634_ System corrupted: FCS attempts to trigger Enh. Coil Gun. 15634_ System corrupted: Enh. Coil Gun misfires. 15634_ Slug penetrates Wall. 15668_ The unstable cave ceiling collapses. 15672_ Beams of light sweep through the air. An alarm sounds. 15692_ ,2MXBK18QXZDU%3FF WVW 15696_ Detecting nearby RIF Installer. 15709_ Connecting with Garrison Terminal... 15717_ System corrupted: Heat flow error (+103). 15718_ Dropped Autogun. Initiating installation procedure... 15726_ Expanded RIF knowledge: Watcher Feeds. 15732_ YBHA%9BJER/QBZIMG,H1C>HU 15734_ Acquired Autogun. 15743_ EXIT=FOUND: RESEARCH Map ----- +----------------------------------------------------+ | ?????????????????????????????????????????????????? | | ?????????????????????????????????????????????????? | | ?????????????????????????????????????????????????? | | ?????????????????????????????????????????????????? | | ?????????????????????????????????????????????????? | | ?????????????????????????????????????????????????? | | ?????????????????????????????????????????????????? | | ?????????????????????????????????????????????????? | | ??????????????##???#?????????????????????????????? | | ??????????????????"??#???????????????????????????? | | ????????????#?????##???????#?????????????????????? | | ???????????? ??? ? ???#?#???#??????????????????? | | ??????????#? #??##??###?##???#???????????????????? | | ???????????# ????############??##????????????????? | | ???????????" ##?####???# ?????????????????????? | | ???????????? ?????###?## < #?#??????????????????? | | ????#?##?#?? ?####?##### #?#??#???????????????? | | ????? ??#??# ?#?#?##??## #?#?????#??????????????? | | ????# ##?#?# #?#??###### ###?###?##?????????????? | | ????? ?##### #?##??#??## ####?##?#??????????????? | | ??##? ###??# ########### #?#?##???#?????????????? | | ????# ###### ##"""## #?#?###??#?????????????? | | #??## ##?### ### ##" "## ##?##?#??###???????????? | | ##### ###?## ### ##" "## ####?#####??#??????????? | | ##?#? ###### ### ##" "## #??####?#??????????????? | | ##?#? #?#### ### ## ## @###?#?##???????????????? | | ##### ###### #T# ### ### #?####???#?????????????? | | #### ###????####????????????? | | #### #???#??###?????????????? | | #?## ###### ## ##########?##??####?#???????????? | | ?### ###### ## ####??##??#####?????????????????? | | #### ## ##?###?###??#?#####?????????????? | | #??# ##### ### #####?##?##?##?##???????????????? | | #### ##?## ### ########??##??#?????????????????? | | ## ##?## ### ###??#####??#?###???????????????? | | ## ##### ### ###?###?#??#?##?????????????????? | | #### ### ####????##?#??##????????????????? | | ###??##??#?#???#????????????????? | | ###?####?#???##?????????????????? | | ## ############?####??###????????????????????? | | ## ########??####?###????????????????????????? | | " ###?#?########??????????????????????????? | | "?#?####?#?#?##?#????#????????????????????? | | " ????????#?#??#??????????????????????????? | | "? ???#????#??#?#?????????????????????????? | | ## #### ###?##??#????????????????????????????? | | ## #### ###?#??#?????????????????????????????? | | ????????????????????????????????? | | ?????????????????????????????????? | | ?????????????????????????????????? | +----------------------------------------------------+ Best States ------------- Heat Dissipation 75 Coolant Potential 80 Energy Generation 39 Energy Capacity 565 Matter Stores 480 Matter Capacity 500 Sight Range 20 Robot Scan Range 15 Terrain Scan Range 16 Terrain Scan Density 210 Jamming Range 14 Armor Coverage 450 Resistance: KI 30 Resistance: TH 15 Resistance: EM 15 Utility Shielding 66 Weapon Cycling 30 Evasion (%) 50 Targeting Accuracy 8 Launcher Accuracy 40 Recoil Reduction 4 Offensive Hacking 10 Relay Coupler Types 1 Relay Coupler Value 38 Item Schematics ----------------- Hcp. Matter Pod | -9/Materials | Hacked Lrn. Tractor Beam | -9/Storage | Hacked Combat Drone Bay | -7/Data Miner | Free Lgt. Regenerative Plating | -7/Data Miner | Free Cld. Aerolev Unit | -7/Data Miner | Free Gravity Neutralizer | -7/Data Miner | Free Antimatter Cannon | -7/Data Miner | Free Linear Gravjet | -7/Data Miner | Free Remote Force Field | -7/Data Miner | Free Mass Driver | -7/Data Miner | Free Imp. Transmission Jammer | -7/Data Miner | Free Lance | -7/Data Miner | Free Imp. Force Booster | -7/Data Miner | Free Robot Schematics ------------------ G-50 Soldier | -7/Data Miner | Free G-47 Trooper | -7/Data Miner | Free R-10 Processor | -7/Data Miner | Free O-24 Administrator | -7/Data Miner | Free A-15 Conveyor | -7/Data Miner | Free Fabricated ------------ Imp. Weapon Cycler | x2 | -6/Factory | Preloaded Alien Tech Used ----------------- None Achievements -------------- None Challenges ------------ None Game ------ Seed SpectralDataDerivative Manual? 0 Play Time 03:14:32 Cumulative 850.0 hours Start 2022.12.26 @ 20:50:39 End 2022.12.27 @ 11:21:39 Sessions 7 Manual Loads 0 Difficulty Rogue Special Mode None Game No. 440 Rogue 313 Adventurer 125 Explorer 2 Win Type - Total 99 Types 81/7/6/1/1/0/0/2/1 Lore% 84 Gallery% 90 Achievement% 80 Wizard Run 0 Options --------- ASCII 0 Keyboard 1 Movement Numpad Keybinds 0 Fullscreen 1 Font 36/TerminusFine Map View 83x50 Tactical HUD 1 Map Filters NONE Filters NONE Steam 1 RUN: bc60eaca-b48f-4e54-973b-25a93dd0d6a1